fUSD/lending_fUSD_20250503
["ID","MTS","AMOUNT","RATE_DAILY","PERIOD"]
[359730654,1746284262929,-1432.73153028,0.0004432,120]
[359730655,1746284262980,-150.0,0.00044439,120]
[359730656,1746284263031,-300.44047232,0.0004444,120]
[359730657,1746284263627,-773.050318,0.00044498,111]
[359730658,1746284263698,-1000.0,0.000445,120]
[359730659,1746284263752,-345.52,0.00044553,120]
[359730660,1746284263807,-773.050318,0.00044598,112]
[359730661,1746284263860,-160.0,0.000446,75]
[359730662,1746284263915,-2524.69587448,0.000446,120]
[359730663,1746284263968,-1842.38,0.00044657,120]
[359730664,1746284264023,-773.050318,0.00044698,113]
[359730665,1746284264079,-773.050318,0.00044798,114]
[359730666,1746284264132,-773.050318,0.00044898,115]
[359730667,1746284264181,-2473.72676155,0.000449,120]
[359730668,1746284264230,-1143.0,0.0004493,120]
[359730669,1746284264277,-435.0,0.00044986,90]
[359730670,1746284264325,-1592.63289567,0.00044998,120]
[359730671,1746284264375,-773.050318,0.00044998,116]
[359730672,1746284264424,-1000.0,0.00044999,120]
[359730673,1746284264473,-1865.97129,0.00044999,120]
[359730674,1746284264523,-280.83031838,0.00045,120]
[359730675,1746284264572,-736.6,0.00045,120]
[359730676,1746284264620,-41656.21,0.00045,60]
[359730677,1746284264669,-154.0,0.00045,120]
[359730678,1746284264719,-151.0,0.00045,120]
[359730679,1746284264769,-159.61323,0.00045,120]
[359730680,1746284264818,-1000.0,0.00045,120]
[359730681,1746284264865,-278.0,0.00045,60]
[359730682,1746284264914,-58548.81988334,0.00045,120]
[359730683,1746284264961,-583.22510493,0.00045,120]
[359730684,1746284265006,-230.5344806,0.00045,120]
[359730685,1746284265055,-2557.9815851,0.00045,120]
[359730686,1746284265105,-500.0,0.00045,120]
[359730687,1746284265154,-1107.58091097,0.00045,120]
[359730688,1746284265202,-683.04368935,0.00045,60]
[359730689,1746284265250,-1819805.97851863,0.00045,120]
[359730690,1746284267123,13010.47,0.0001884,2]
[359730691,1746284270977,-180194.02148137,0.00045,120]
[359730692,1746284271028,-252.91605,0.00045,120]
[359730693,1746284271079,-254.1285032,0.00045,120]
[359730694,1746284271129,-29661.45754586,0.00045,80]
[359730695,1746284271178,-2248.33419155,0.00045,60]
[359730696,1746284271226,-214.52,0.00045,120]
[359730697,1746284271275,-985.31799718,0.00045,120]
[359730698,1746284271323,-160.9,0.00045,85]
[359730699,1746284271371,-158.23115005,0.00045,120]
[359730700,1746284271420,-5834.61,0.00045,120]
[359730701,1746284271468,-5834.61,0.00045,120]
[359730702,1746284271515,-5834.61,0.00045,120]
[359730703,1746284271565,-5834.61,0.00045,120]
[359730704,1746284271614,-5834.61,0.00045,120]
[359730705,1746284271663,-342.0,0.00045,120]
[359730706,1746284271711,-1026.4210346,0.00045,120]
[359730707,1746284271758,-14212.1480022,0.00045,120]
[359730708,1746284271806,-1360.95705007,0.00045,120]
[359730709,1746284271854,-1066.0,0.00045,120]
[359730710,1746284271901,-155.05251997,0.00045,120]
[359730711,1746284271948,-3761.32653138,0.00045,120]
[359730712,1746284271993,-10592.24299624,0.00045,120]
[359730713,1746284272038,-2973.39839948,0.00045,60]
[359730714,1746284272084,-20000.0,0.00045,120]
[359730715,1746284272128,-48926.77076219,0.00045,60]
[359730716,1746284272174,-299.03971838,0.00045,120]
[359730717,1746284272220,-294.02646984,0.00045,120]
[359730718,1746284272267,-773.050318,0.00045098,117]
[359730719,1746284272313,-5000.0,0.000451,120]
[359730720,1746284272360,-773.050318,0.00045198,118]
[359730721,1746284272406,-5000.0,0.000452,120]
[359730722,1746284272453,-9011.38,0.0004522,120]
[359730723,1746284272499,-150.0,0.00045227,120]
[359730724,1746284272712,-773.050318,0.00045298,119]
[359730725,1746284272759,-1088.0,0.000453,120]
[359730726,1746284272804,-7448.90511955,0.000453,120]
[359730727,1746284272850,-5579.72013728,0.000453,120]
[359730728,1746284272899,-150.0,0.00045303,120]
[359730729,1746284272947,-150.0,0.0004535,120]
[359730730,1746284272994,-773.050318,0.00045398,120]
[359730731,1746284273042,-977012.49,0.0004542,120]
[359730732,1746284273087,-100000.0,0.00045462,120]
[359730733,1746284273133,-2000.0,0.00045479,120]
[359730734,1746284273181,-1842.38,0.00045479,120]
[359730735,1746284273229,-150.0,0.00045483,120]
[359730736,1746284273275,-773.050318,0.00045498,110]
[359730737,1746284273321,-150.0,0.0004557,120]
[359730738,1746284273369,-773.050318,0.00045598,111]
[359730739,1746284273415,-2417.36921234,0.000456,120]
[359730740,1746284273461,-160.0,0.000456,78]
[359730741,1746284273511,-773.050318,0.00045698,112]
[359730742,1746284273558,-186.81256183,0.000457,120]
[359730743,1746284273606,-338.6193,0.000457,120]
[359730744,1746284273657,-500.0,0.0004573,60]
[359730745,1746284273703,-546.26121913,0.00045748,60]
[359730746,1746284273752,-773.050318,0.00045798,113]
[359730747,1746284273801,-208.8335252,0.00045799,120]
[359730748,1746284273852,-773.050318,0.00045898,114]
[359730749,1746284273902,-2718.92127325,0.000459,119]
[359730750,1746284273953,-345.52,0.00045923,120]
[359730751,1746284274002,-237.61003089,0.0004594,120]
[359730752,1746284274054,-773.050318,0.00045998,115]
[359730753,1746284274105,-400.0,0.00046,120]
[359730754,1746284274154,-1200.0,0.00046,120]
[359730755,1746284274201,-233.64318618,0.00046,120]
[359730756,1746284274249,-594.39010431,0.00046,60]
[359730757,1746284274297,-203.62112694,0.00046,120]
[359730758,1746284274350,-28929.0,0.00046,120]
[359730759,1746284274402,-5230.67829686,0.00046,120]
[359730760,1746284274452,-1214.68228837,0.00046,120]
[359730761,1746284274500,-2000.0,0.00046027,120]
[359730762,1746284274550,-50000.0,0.00046197,120]
[359730763,1746284274602,-150.0,0.000462,120]
[359730764,1746284274655,-502022.28681697,0.00046277,120]
[359730765,1746284274706,-1842.38,0.00046301,120]
[359730766,1746284274759,-150.0,0.00046416,120]
[359730767,1746284274809,-150.0,0.00046445,120]
[359730768,1746284274860,-773.050318,0.00046498,120]
[359730769,1746284274910,-2000.0,0.00046575,120]
[359730770,1746284274964,-9046.7310198,0.000468,120]
[359730771,1746284275011,-1866.99,0.000468,110]
[359730772,1746284275059,-338.6193,0.000469,120]
[359730773,1746284275107,-5000.0,0.00047,120]
[359730774,1746284275155,-800.0,0.00047,120]
[359730775,1746284275203,-150.0,0.00047079,120]
[359730776,1746284275250,-1842.38,0.00047123,120]
[359730777,1746284275298,-150.0,0.00047187,120]
[359730778,1746284275347,-150.0,0.00047256,120]
[359730779,1746284275394,-345.52,0.00047292,120]
[359730780,1746284275444,-150.0,0.00047395,120]
[359730781,1746284275493,-227.23868,0.000474,120]
[359730782,1746284275542,-773.050318,0.00047498,120]
[359730783,1746284275589,-50000.0,0.00047499,120]
[359730784,1746284275639,-2000.0,0.000478,120]
[359730785,1746284275694,-1842.38,0.00047945,120]
[359730786,1746284275743,-258.0,0.00047978,120]
[359730787,1746284275792,-1210.4206848,0.00048,120]
[359730788,1746284275842,-799.36597753,0.00048,120]
[359730789,1746284275891,-1000.0,0.00048,120]
[359730790,1746284275938,-587.48807542,0.00048,120]
[359730791,1746284275989,-41656.21,0.00048,60]
[359730792,1746284276039,-28929.0,0.00048,120]
[359730793,1746284276089,-5230.67829686,0.00048,120]
[359730794,1746284276140,-1214.68228837,0.00048,120]
[359730795,1746284276190,-439.0,0.00048,120]
[359730796,1746284276242,-338.6193,0.000481,120]
[359730797,1746284276297,-773.050318,0.00048498,120]
[359730798,1746284276348,-365.52185633,0.000485,120]
[359730799,1746284276400,-345.52,0.00048662,120]
[359730800,1746284276453,-1842.38,0.00048767,120]
[359730801,1746284276504,-46123.07418003,0.000488,120]
[359730802,1746284276832,-10000.0,0.00049,120]
[359730803,1746284276884,-109933.95602416,0.00049,120]
[359730804,1746284276933,-154.86814481,0.00049,120]
[359730805,1746284276981,-154.03842245,0.00049,120]
[359730806,1746284277032,-338.6193,0.000493,120]
[359730807,1746284277084,-773.050318,0.00049498,120]
[359730808,1746284277131,-505.53046803,0.000495,120]
[359730809,1746284277179,-435.0,0.0004954,120]
[359730810,1746284277229,-1842.38,0.00049589,120]
[359730811,1746284277278,-450.83670511,0.0004977,120]
[359730812,1746284277326,-314.13232705,0.000498,120]
[359730813,1746284277376,-2457.34376779,0.000498,120]
[359730814,1746284277424,-3000.0,0.000499,120]
[359730815,1746284277472,-82267.61316271,0.000499,120]
[359730816,1746284277521,-4000.0,0.00049998,120]
[359730817,1746284277571,-4000.0,0.00049998,120]
[359730818,1746284277621,-1000.0,0.00049999,120]
[359730819,1746284277671,-562.17184156,0.0005,60]
[359730820,1746284277722,-1000.0,0.0005,120]
[359730821,1746284277771,-3000.0,0.0005,120]
[359730822,1746284277821,-343.97,0.0005,120]
[359730823,1746284277871,-11520.08586333,0.0005,60]
[359730824,1746284277922,-150.0,0.0005,60]
[359730825,1746284277972,-1000.0,0.0005,120]
[359730826,1746284278021,-151.41165528,0.0005,120]
[359730827,1746284278071,-6000.0,0.0005,120]
[359730828,1746284278118,-732.0,0.0005,120]
[359730829,1746284278164,-157.99065159,0.0005,90]
[359730830,1746284278213,-675.76564686,0.0005,120]
[359730831,1746284278261,-10000.0,0.0005,120]
[359730832,1746284278309,-2000.0,0.0005,120]
[359730833,1746284278363,-459753.99730547,0.0005,120]
[359730834,1746284283240,-540246.00269453,0.0005,120]
[359730835,1746284283298,-1000000.0,0.0005,120]
[359730836,1746284283354,-1000000.0,0.0005,120]
[359730837,1746284283408,-459753.99730547,0.0005,120]
[359730838,1746284286965,-1333.0,0.00034849,120]
[359730839,1746284287089,-490.40697696,0.00046685,90]
[359730840,1746284287140,-301.39974005,0.00048658,120]
[359730841,1746284287196,-540246.00269453,0.0005,120]
[359730842,1746284287242,-8690.83175953,0.0005,120]
[359730843,1746284287290,-668.58198163,0.0005,120]
[359730844,1746284287335,-3032.81445345,0.0005,120]
[359730845,1746284287379,-349.494269,0.0005,120]
[359730846,1746284287424,-1232.92813107,0.0005,120]
[359730847,1746284287470,-3943.89533918,0.0005,120]
[359730848,1746284287519,-1000000.0,0.0005,120]
[359730849,1746284287566,-317.62040443,0.0005,120]
[359730850,1746284287614,-566.22274553,0.0005,120]
[359730851,1746284287662,-10000.0,0.0005,120]
[359730852,1746284287711,-538.39079258,0.0005,120]
[359730853,1746284287760,-158.43607789,0.0005,120]
[359730854,1746284287810,-1810.12941982,0.0005,120]
[359730855,1746284287860,-274.0,0.0005,120]
[359730856,1746284287912,-800000.0,0.0005,120]
[359730857,1746284287961,-28929.0,0.0005,120]
[359730858,1746284288009,-60000.0,0.0005,120]
[359730859,1746284288057,-1185.0,0.0005,120]
[359730860,1746284288106,-7091.93228014,0.0005,120]
[359730861,1746284288153,-351.97271038,0.0005,120]
[359730862,1746284288199,-1199.93674728,0.0005,120]
[359730863,1746284288247,-345.52,0.00050032,120]
[359730864,1746284288291,-531.48762683,0.00050123,120]
[359730865,1746284288338,-1842.38,0.0005041,120]
[359730866,1746284288386,-773.050318,0.00050498,120]
[359730867,1746284288431,-6000.0,0.000505,120]
[359730868,1746284288477,-338.6193,0.000505,120]
[359730869,1746284288528,-1000.0,0.00050999,120]
[359730870,1746284288577,-10000.0,0.00051,120]
[359730871,1746284288628,-84025.60143532,0.00051,120]
[359730872,1746284288679,-6000.0,0.00051,120]
[359730873,1746284288730,-16510.68833625,0.00051,120]
[359730874,1746284288780,-486.49055843,0.00051,60]
[359730875,1746284288831,-41656.21,0.00051,60]
[359730876,1746284288879,-218974.60305049,0.00051,120]
[359730877,1746284288928,-10461.35659373,0.00051,120]
[359730878,1746284288979,-2429.36457673,0.00051,120]
[359730879,1746284289032,-1842.38,0.00051232,120]
[359730880,1746284289085,-345.67379675,0.00051402,120]
[359730881,1746284289133,-773.050318,0.00051498,120]
[359730882,1746284289180,-6000.0,0.000515,120]
[359730883,1746284289226,-338.6193,0.000517,120]
[359730884,1746284289272,-2690.19565463,0.000518,120]
[359730885,1746284289319,-113922.71261139,0.000518,120]
[359730886,1746284294253,-153.14775644,0.00049999,60]
[359730887,1746284294303,-1061.0,0.0005,120]
[359730888,1746284294357,-93817.59424464,0.000518,120]
[359730889,1746284294404,-3746.61,0.00051905,90]
[359730890,1746284294452,-153.85368053,0.00052,120]
[359730891,1746284294499,-900.0,0.00052,120]
[359730892,1746284294547,-800.0,0.00052,120]
[359730893,1746284294596,-2000.0,0.00052,120]
[359730894,1746284294642,-6000.0,0.00052,120]
[359730895,1746284294694,-4018.0417493,0.00052,120]
[359730896,1746284294743,-5000.01,0.00052,120]
[359730897,1746284294793,-151.0,0.00052,120]
[359730898,1746284294840,-313.11230434,0.00052,120]
[359730899,1746284294887,-28929.0,0.00052,120]
[359730900,1746284294935,-771.80147824,0.00052054,120]
[359730901,1746284294982,-548.66,0.00052054,120]
[359730902,1746284295034,-1842.38,0.00052054,120]
[359730903,1746284295085,-773.050318,0.00052498,120]
[359730904,1746284295133,-3000.0,0.000525,120]
[359730905,1746284295180,-6000.0,0.000525,120]
[359730906,1746284295234,-1000000.0,0.000525,120]
[359730907,1746284295284,-1000000.0,0.000525,120]
[359730908,1746284295333,-840020.73846851,0.000525,120]
[359730909,1746284299422,-159979.26153149,0.000525,120]
[359730910,1746284299473,-1000000.0,0.000525,120]
[359730911,1746284299523,-1000000.0,0.000525,120]
[359730912,1746284299572,-8104.43016151,0.0005268,90]
[359730913,1746284299619,-1769.92207403,0.0005283,120]
[359730914,1746284299666,-1842.38,0.00052876,120]
[359730915,1746284299714,-338.6193,0.000529,120]
[359730916,1746284299767,-1000.0,0.00052999,120]
[359730917,1746284299814,-5140.78224951,0.00053,120]
[359730918,1746284299860,-5000.0,0.00053,120]
[359730919,1746284300187,-10000.0,0.00053,120]
[359730920,1746284300235,-2499.43073225,0.00053,120]
[359730921,1746284300288,-804325.17395121,0.00053,120]
[359730922,1746284304958,-195674.82604879,0.00053,120]
[359730923,1746284305011,-1000000.0,0.00053,120]
[359730924,1746284305061,-1000000.0,0.00053,120]
[359730925,1746284305112,-804325.17395121,0.00053,120]
[359730926,1746284309715,-195674.82604879,0.00053,120]
[359730927,1746284309765,-10000.0,0.00053,120]
[359730928,1746284309814,-641.11625869,0.00053,120]
[359730929,1746284309859,-50112.3802404,0.00053,120]
[359730930,1746284309907,-308.57499227,0.00053,60]
[359730931,1746284309951,-9459.57967212,0.00053,120]
[359730932,1746284309998,-17383.08155892,0.00053,120]
[359730933,1746284310047,-2251.92856921,0.00053,120]
[359730934,1746284310094,-150.0,0.00053,120]
[359730935,1746284310141,-155.75221986,0.00053125,55]
[359730936,1746284310186,-500.0,0.00053125,55]
[359730937,1746284310230,-526.00359623,0.00053125,55]
[359730938,1746284310275,-500.0,0.00053125,55]
[359730939,1746284310319,-500.0,0.00053125,55]
[359730940,1746284310365,-214.41895681,0.00053125,55]
[359730941,1746284310409,-150.50631763,0.00053125,55]
[359730942,1746284310456,-1000000.0,0.0005325,120]
[359730943,1746284310504,-1000000.0,0.0005325,120]
[359730944,1746284310553,-711471.83156907,0.0005325,120]
[359730945,1746284315772,-288528.16843093,0.0005325,120]
[359730946,1746284315827,-1000000.0,0.0005325,120]
[359730947,1746284315879,-1000000.0,0.0005325,120]
[359730948,1746284315935,-711471.83156907,0.0005325,120]
[359730949,1746284326766,-288528.16843093,0.0005325,120]
[359730950,1746284326815,-1000000.0,0.0005325,120]
[359730951,1746284326864,-1000000.0,0.0005325,120]
[359730952,1746284326911,-711471.83156907,0.0005325,120]
[359730953,1746284330307,-288528.16843093,0.0005325,120]
[359730954,1746284330357,-1000000.0,0.0005325,120]
[359730955,1746284330404,-150.0,0.0005325,120]
[359730956,1746284330460,-1000000.0,0.000533,120]
[359730957,1746284330507,-50000.0,0.000533,120]
[359730958,1746284330556,-661321.83156907,0.000533,120]
[359730959,1746284336872,-338678.16843093,0.000533,120]
[359730960,1746284336928,-1000000.0,0.000533,120]
[359730961,1746284336981,-1000000.0,0.000533,120]
[359730962,1746284337035,-661321.83156907,0.000533,120]
[359730963,1746284341192,-338678.16843093,0.000533,120]
[359730964,1746284341250,-1000000.0,0.000533,120]
[359730965,1746284341304,-1000000.0,0.000533,120]
[359730966,1746284341356,-661321.83156907,0.000533,120]
[359730967,1746284346456,-338678.16843093,0.000533,120]
[359730968,1746284346509,-150.0,0.000533,120]
[359730969,1746284346560,-556298.351886,0.00053415,55]
[359730970,1746284346610,-81888.0,0.00053425,59]
[359730971,1746284347063,150.0,0.00053415,55]
[359730972,1746284348603,150.0,0.00053424,59]
[359730973,1746284348840,150.0,0.00053424,59]
[359730974,1746284349240,150.0,0.00053424,59]
[359730975,1746284349418,168.45761307,0.00053424,59]
[359730976,1746284350120,150.0,0.00053424,59]
[359730977,1746284350812,221.84447777,0.00053424,59]
[359730978,1746284352485,272.92562646,0.00053424,59]
[359730979,1746284356742,152.14871149,0.00053424,59]
[359730980,1746284358144,152.6145878,0.00053424,59]
[359730981,1746284358860,500.0,0.00053424,59]
[359730982,1746284359052,500.0,0.00053424,59]
[359730983,1746284359240,500.0,0.00053424,59]
[359730984,1746284359449,500.0,0.00053424,59]
[359730985,1746284359746,500.0,0.00053424,59]
[359730986,1746284359936,500.0,0.00053424,59]
[359730987,1746284360314,500.0,0.00053424,59]
[359730988,1746284360511,500.0,0.00053424,59]
[359730989,1746284360726,500.0,0.00053424,59]
[359730990,1746284361245,500.0,0.00053424,59]
[359730991,1746284361594,500.0,0.00053424,59]
[359730992,1746284361749,550.74949778,0.00053424,59]
[359730993,1746284363592,500.0,0.00053424,59]
[359730994,1746284363808,500.0,0.00053424,59]
[359730995,1746284364030,179.02952374,0.00053424,59]
[359730996,1746284366526,500.0,0.00053424,59]
[359730997,1746284366702,555.55970178,0.00053424,59]
[359730998,1746284368211,150.0,0.00053424,59]
[359730999,1746284368394,150.0,0.00053424,59]
[359731000,1746284368918,150.0,0.00053424,59]
[359731001,1746284369021,150.0,0.00053424,59]
[359731002,1746284422045,200.0,0.00018762,2]
[359731003,1746284441096,200.0,0.00018758,2]
[359731004,1746284453262,500.0,0.0001877,2]
[359731005,1746284453901,192.0,0.0001877,2]
[359731008,1746284500135,16355.39,0.0001877,2]
[359731009,1746284534856,624.41,0.00016866,2]
[359731010,1746284535029,624.41,0.0001913,2]
[359731011,1746284582953,250.0,0.00018788,7]
[359731012,1746284610785,150.0,0.00029933,120]
[359731013,1746284670794,150.0,0.00032004,120]
[359731014,1746284734132,200.0,0.0001875,2]
[359731015,1746284737416,169.416246,0.0003096,60]
[359731016,1746284751836,200.0,0.00032876,60]
[359731017,1746284779991,406.95945016,0.000328,60]
[359731018,1746284794545,168.454158,0.0003096,60]
[359731019,1746284794841,168.454158,0.00027,30]
[359731020,1746284805137,-156.23050059,0.0001952,2]
[359731021,1746284805158,-200.0,0.00019547,2]
[359731022,1746284805180,-200.0,0.00019567,2]
[359731023,1746284805201,-500.0,0.00019574,2]
[359731024,1746284805222,-200.0,0.00019577,2]
[359731025,1746284805242,-189.93620248,0.0001958,2]
[359731026,1746284805264,-156.23050059,0.00019583,2]
[359731027,1746284805284,-3050.72595443,0.00019603,2]
[359731028,1746284810017,1037.2,0.00018837,2]
[359731029,1746284864177,500.0,0.0003287,60]
[359731030,1746284905714,500.0,0.0003287,60]
[359731031,1746284910766,150.0,0.0003246,120]
[359731032,1746284914736,168.45416,0.0003096,60]
[359731033,1746284916756,500.0,0.0003287,60]
[359731034,1746284924872,500.0,0.0003287,60]
[359731035,1746284932678,5040.04456,0.000285,30]
[359731036,1746284934581,500.0,0.0003287,60]
[359731037,1746284937856,5040.04456,0.00027,30]
[359731038,1746284944908,500.0,0.0003287,60]
[359731045,1746284977157,500.0,0.0003287,60]
[359731046,1746284987704,500.0,0.0003287,60]
[359731047,1746285005393,688.06,0.00018783,2]
[359731048,1746285007198,1973.93,0.0003287,60]
[359731049,1746285011418,500.0,0.0003287,60]
[359731050,1746285031618,657.50057962,0.00032877,60]
[359731052,1746285032232,-1173.67400268,0.00019603,2]
[359731053,1746285032260,-5636.3946964,0.00019603,2]
[359731054,1746285032269,-250.0,0.00019604,2]
[359731055,1746285032278,-1200.0,0.00019604,2]
[359731056,1746285032287,-200.0,0.00019604,2]
[359731057,1746285032297,-300.0,0.00019605,2]
[359731058,1746285032306,-151.0,0.00019608,2]
[359731059,1746285032315,-200.0,0.00019608,2]
[359731060,1746285032324,-300.0,0.00019609,2]
[359731061,1746285032334,-1658.13,0.0001961,2]
[359731062,1746285032343,-826.49880524,0.00019613,2]
[359731063,1746285032353,-826.49880524,0.00019613,2]
[359731064,1746285032362,-584.54937152,0.00019613,2]
[359731077,1746285033258,500.0,0.0003287,60]
[359731079,1746285038087,-241.94943372,0.00019613,2]
[359731081,1746285038097,-826.49880524,0.00019613,2]
[359731083,1746285038107,-826.49880524,0.00019613,2]
[359731085,1746285038115,-826.49880524,0.00019613,2]
[359731086,1746285038125,-826.49880524,0.00019613,2]
[359731087,1746285038134,-826.49880524,0.00019613,2]
[359731088,1746285038143,-826.49880524,0.00019613,2]
[359731089,1746285038152,-826.49880524,0.00019613,2]
[359731090,1746285038161,-826.49880524,0.00019613,2]
[359731091,1746285038170,-826.49880524,0.00019613,2]
[359731092,1746285038180,-826.49880524,0.00019613,2]
[359731093,1746285038189,-826.49880524,0.00019613,2]
[359731094,1746285038199,-826.49880524,0.00019613,2]
[359731095,1746285038209,-826.49880524,0.00019613,2]
[359731096,1746285038218,-826.49880524,0.00019613,2]
[359731097,1746285038227,-826.49880524,0.00019613,2]
[359731098,1746285038236,-826.49880524,0.00019613,2]
[359731099,1746285038247,-826.49880524,0.00019613,2]
[359731100,1746285038256,-826.49880524,0.00019613,2]
[359731101,1746285038265,-826.49880524,0.00019613,2]
[359731102,1746285038274,-826.49880524,0.00019613,2]
[359731103,1746285038284,-826.49880524,0.00019613,2]
[359731104,1746285038296,-826.49880524,0.00019613,2]
[359731105,1746285038307,-826.49880524,0.00019613,2]
[359731106,1746285038316,-826.49880524,0.00019613,2]
[359731107,1746285038325,-817.01439273,0.00019613,2]
[359731108,1746285038334,-817.01439273,0.00019613,2]
[359731109,1746285038344,-817.01439273,0.00019613,2]
[359731110,1746285038354,-817.01439273,0.00019613,2]
[359731111,1746285038363,-817.01439273,0.00019613,2]
[359731112,1746285038372,-817.01439273,0.00019613,2]
[359731113,1746285038382,-817.01439273,0.00019613,2]
[359731114,1746285038391,-817.01439273,0.00019613,2]
[359731115,1746285038401,-817.01439273,0.00019613,2]
[359731116,1746285038410,-817.01439273,0.00019613,2]
[359731118,1746285038419,-817.01439273,0.00019613,2]
[359731119,1746285038429,-817.01439273,0.00019613,2]
[359731120,1746285038438,-817.01439273,0.00019613,2]
[359731121,1746285038448,-817.01439273,0.00019613,2]
[359731122,1746285038458,-817.01439273,0.00019613,2]
[359731123,1746285038467,-817.01439273,0.00019613,2]
[359731124,1746285038477,-817.01439273,0.00019613,2]
[359731125,1746285038486,-817.01439273,0.00019613,2]
[359731126,1746285038496,-817.01439273,0.00019613,2]
[359731127,1746285038505,-817.01439273,0.00019613,2]
[359731128,1746285038515,-817.01439273,0.00019613,2]
[359731130,1746285038524,-817.01439273,0.00019613,2]
[359731132,1746285038533,-817.01439273,0.00019613,2]
[359731134,1746285038542,-817.01439273,0.00019613,2]
[359731136,1746285038551,-817.01439273,0.00019613,2]
[359731138,1746285038560,-817.01439273,0.00019613,2]
[359731140,1746285038569,-817.01439273,0.00019613,2]
[359731142,1746285038579,-817.01439273,0.00019613,2]
[359731144,1746285038588,-817.01439273,0.00019613,2]
[359731146,1746285038597,-813.71332447,0.00019613,2]
[359731147,1746285038606,-813.71332447,0.00019613,2]
[359731149,1746285038615,-813.71332447,0.00019613,2]
[359731151,1746285038625,-813.71332447,0.00019613,2]
[359731153,1746285038634,-813.71332447,0.00019613,2]
[359731155,1746285038643,-813.71332447,0.00019613,2]
[359731156,1746285038652,-813.71332447,0.00019613,2]
[359731157,1746285038662,-813.71332447,0.00019613,2]
[359731158,1746285038671,-813.71332447,0.00019613,2]
[359731159,1746285038681,-813.71332447,0.00019613,2]
[359731160,1746285038690,-813.71332447,0.00019613,2]
[359731161,1746285038700,-813.71332447,0.00019613,2]
[359731162,1746285038709,-813.71332447,0.00019613,2]
[359731163,1746285038719,-813.71332447,0.00019613,2]
[359731164,1746285038728,-813.71332447,0.00019613,2]
[359731165,1746285038738,-813.71332447,0.00019613,2]
[359731166,1746285038748,-813.71332447,0.00019613,2]
[359731167,1746285038758,-813.71332447,0.00019613,2]
[359731168,1746285038768,-813.71332447,0.00019613,2]
[359731169,1746285038778,-813.71332447,0.00019613,2]
[359731170,1746285038787,-801.19465795,0.00019613,2]
[359731171,1746285038797,-801.19465795,0.00019613,2]
[359731172,1746285038807,-801.19465795,0.00019613,2]
[359731174,1746285038816,-801.19465795,0.00019613,2]
[359731175,1746285038826,-801.19465795,0.00019613,2]
[359731177,1746285038836,-801.19465795,0.00019613,2]
[359731179,1746285038845,-801.19465795,0.00019613,2]
[359731181,1746285038854,-801.19465795,0.00019613,2]
[359731182,1746285038864,-801.19465795,0.00019613,2]
[359731183,1746285038874,-801.19465795,0.00019613,2]
[359731184,1746285038883,-801.19465795,0.00019613,2]
[359731185,1746285038893,-801.19465795,0.00019613,2]
[359731186,1746285038903,-801.19465788,0.00019613,2]
[359731187,1746285038914,-3657.33,0.00019619,2]
[359731188,1746285038923,-150.99,0.00019619,2]
[359731189,1746285038933,-999.99,0.00019619,2]
[359731190,1746285038943,-9999.99,0.00019619,2]
[359731191,1746285038954,-1129.56,0.00019619,2]
[359731192,1746285038964,-499.99,0.00019619,2]
[359731193,1746285038973,-1219.12,0.00019619,2]
[359731194,1746285038982,-9999.99,0.00019619,2]
[359731195,1746285038994,-6953.78,0.00019619,2]
[359731196,1746285039003,-9999.99,0.00019619,2]